bitfinex-derivatives/quotes_BTCF0:USTF0_20250108
["timestamp","ask_amount","ask_price","bid_price","bid_amount"]
[1736368703461,0.053159,94082.0,94081.0,0.053157]
[1736368704264,0.053156,94086.0,94085.0,0.053156]
[1736368704662,0.053156,94086.0,94081.0,0.3608]
[1736368704864,0.053156,94086.0,94079.0,0.0915]
[1736368705169,0.053163,94074.0,94073.0,0.0933]
[1736368706467,0.053163,94074.0,94073.0,0.0983]
[1736368707765,0.053163,94074.0,94073.0,0.0943]
[1736368710468,0.053163,94074.0,94073.0,0.001]
[1736368711066,0.01988187,94086.0,94073.0,0.001]
[1736368711278,0.05316,94081.0,94080.0,0.053159]
[1736368712565,0.05516,94081.0,94080.0,0.053159]
[1736368712771,0.05616,94081.0,94080.0,0.053159]
[1736368714070,0.053163,94076.0,94075.0,0.053162]
[1736368715470,0.053163,94076.0,94075.0,0.054162]
[1736368715768,0.053163,94076.0,94075.0,0.057162]
[1736368716661,0.10488897,94076.0,94075.0,0.057162]
[1736368717060,0.10488897,94076.0,94075.0,0.054162]
[1736368717260,0.10488897,94076.0,94075.0,0.057162]
[1736368717667,0.10488897,94076.0,94075.0,0.056162]
[1736368718175,0.10488897,94076.0,94075.0,0.054162]
[1736368718361,0.10488897,94076.0,94075.0,0.057162]
[1736368719365,0.10488897,94076.0,94075.0,0.056162]
[1736368719767,0.10488897,94076.0,94075.0,0.003]
[1736368720660,0.19024232,94076.0,94075.0,0.003]
[1736368720863,0.19024232,94076.0,94075.0,0.004]
[1736368721063,0.19024232,94076.0,94075.0,0.003]
[1736368721466,0.053163,94073.0,94072.0,0.1799]
[1736368721859,0.053163,94073.0,94072.0,0.233064]
[1736368722063,0.13707932,94076.0,94072.0,0.233064]
[1736368722373,0.19024132,94076.0,94075.0,0.053162]
[1736368723478,0.053162,94076.0,94075.0,0.053162]
[1736368724164,0.05172597,94079.0,94078.0,0.053161]
[1736368724358,0.05172597,94079.0,94078.0,0.413961]
[1736368724565,0.21951754,94088.0,94087.0,0.053155]
[1736368724773,0.053151,94096.0,94095.0,0.053151]
[1736368725075,0.18649102,94099.0,94098.0,0.053149]
[1736368726069,0.05315,94096.0,94095.0,0.003]
[1736368728163,0.08389578,94099.0,94076.0,0.2874]
[1736368728369,0.10860025,94090.0,94081.0,0.05316]
[1736368728566,0.053161,94082.0,94081.0,0.05316]
[1736368729471,0.053161,94082.0,94081.0,0.06116]
[1736368730275,0.23447926,94082.0,94081.0,0.06116]
[1736368730872,0.18131826,94082.0,94081.0,0.06116]
[1736368731179,0.18131826,94082.0,94081.0,0.05516]
[1736368731770,0.18131826,94082.0,94081.0,0.05616]
[1736368732270,0.18131826,94082.0,94081.0,0.05316]
[1736368732468,0.18131826,94082.0,94081.0,0.05616]
[1736368733076,0.053158,94085.0,94084.0,0.053158]
[1736368733374,0.18131826,94090.0,94081.0,0.006]
[1736368733575,0.053159,94082.0,94081.0,0.006]
[1736368734769,0.053159,94082.0,94081.0,0.004]
[1736368735377,0.053159,94082.0,94081.0,0.002]
[1736368735577,0.053159,94082.0,94081.0,0.003]
[1736368735983,0.053159,94082.0,94081.0,0.002]
[1736368736178,0.23447726,94082.0,94081.0,0.002]
[1736368736381,0.23447726,94082.0,94081.0,0.05316]
[1736368738770,0.23447726,94082.0,94081.0,0.05416]
[1736368739073,0.23447726,94082.0,94081.0,0.05516]
[1736368739275,0.23447726,94082.0,94081.0,0.05416]
[1736368739579,0.23447726,94082.0,94081.0,0.05716]
[1736368739877,0.23447726,94082.0,94081.0,0.05416]
[1736368740472,0.28619635,94082.0,94081.0,0.05416]
[1736368741474,0.28619635,94082.0,94081.0,0.001]
[1736368741665,0.053163,94078.0,94077.0,0.053162]
[1736368741869,0.053163,94078.0,94077.0,0.02523905]
[1736368742775,0.23303735,94082.0,94081.0,0.05616]
[1736368743080,0.28619635,94082.0,94081.0,0.05616]
[1736368743383,0.11091809,94088.0,94081.0,0.05416]
[1736368743569,0.11091809,94088.0,94087.0,0.053156]
[1736368743775,0.1,94100.0,94099.0,0.05315]
[1736368743977,0.13120575,94103.0,94099.0,0.3608]
[1736368744269,0.13120575,94103.0,94102.0,0.053148]
[1736368745179,0.0861563,94123.0,94102.0,0.053148]
[1736368745379,0.153138,94120.0,94119.0,0.053138]
[1736368746377,0.154138,94120.0,94119.0,0.053138]
[1736368747484,0.154138,94120.0,94115.0,0.3608]
[1736368747485,0.05314,94116.0,94115.0,0.3608]
[1736368747684,0.101,94120.0,94109.0,0.06917365]
[1736368747874,0.053143,94110.0,94109.0,0.06917365]
[1736368748791,0.053143,94110.0,94109.0,0.07017365]
[1736368749479,0.053143,94110.0,94109.0,0.053144]
[1736368749678,0.053143,94110.0,94109.0,0.001]
[1736368749874,0.053143,94110.0,94109.0,0.004]
[1736368750784,0.053143,94110.0,94109.0,0.057144]
[1736368751378,0.053142,94116.0,94115.0,0.053139]
[1736368752279,0.053143,94111.0,94110.0,0.053143]
[1736368752478,0.053143,94110.0,94109.0,0.001]
[1736368752779,0.001,94116.0,94107.0,0.413945]
[1736368752985,0.053144,94108.0,94107.0,0.053145]
[1736368754581,0.053138,94119.0,94106.0,0.3608]
[1736368754777,0.053145,94107.0,94106.0,0.3608]
[1736368755174,0.16611126,94108.0,94104.0,0.053147]
[1736368755379,0.053146,94105.0,94104.0,0.053147]
[1736368755984,0.05315,94101.0,94100.0,0.053149]
[1736368756302,0.05315,94101.0,94098.0,0.3608]
[1736368756303,0.05315,94099.0,94098.0,0.3608]
[1736368756985,0.05315,94099.0,94098.0,0.41395]
[1736368757198,0.053147,94104.0,94103.0,0.053146]
[1736368757379,0.25290812,94110.0,94098.0,0.41395]
[1736368757380,0.16611126,94099.0,94098.0,0.41395]
[1736368758292,0.16611126,94099.0,94098.0,0.41595]
[1736368758886,0.16611126,94099.0,94098.0,0.42095]
[1736368759191,0.21926126,94099.0,94098.0,0.42095]
[1736368759390,0.21926126,94099.0,94098.0,0.41995]
[1736368759987,0.21926126,94099.0,94098.0,0.41595]
[1736368760187,0.21926126,94099.0,94098.0,0.41995]
[1736368760700,0.16611126,94099.0,94098.0,0.41995]
[1736368761591,0.07686611,94099.0,94098.0,0.41795]
[1736368761796,0.07686611,94099.0,94098.0,0.41495]
[1736368762290,0.07686611,94099.0,94098.0,0.41595]
[1736368762491,0.07686611,94099.0,94098.0,0.41995]
[1736368762897,0.07686611,94099.0,94098.0,0.41595]
[1736368763093,0.07686611,94099.0,94098.0,0.41695]
[1736368763295,0.22127802,94106.0,94105.0,0.053146]
[1736368763296,0.27442402,94106.0,94105.0,0.053146]
[1736368763489,0.22127802,94106.0,94105.0,0.053146]
[1736368764190,0.22127802,94106.0,94105.0,1.553146]
[1736368764799,0.18974393,94107.0,94105.0,1.553146]
[1736368765002,0.18974393,94107.0,94106.0,0.053146]
[1736368765899,0.22127802,94117.0,94116.0,0.05314]
[1736368766100,0.22127802,94117.0,94116.0,0.41394]
[1736368766395,0.22127802,94117.0,94116.0,0.77474]
[1736368766902,0.1,94120.0,94116.0,0.77474]
[1736368766903,0.07693388,94119.0,94116.0,0.77474]
[1736368767200,0.07693388,94119.0,94118.0,0.053139]
[1736368767391,0.13007188,94119.0,94118.0,0.053139]
[1736368768695,0.13007188,94119.0,94118.0,0.054139]
[1736368769298,0.13007188,94119.0,94118.0,0.056139]
[1736368769491,0.13007188,94119.0,94118.0,0.055139]
[1736368769694,0.21956865,94119.0,94118.0,0.056139]
[1736368769893,0.21956865,94119.0,94118.0,0.057139]
[1736368771096,0.21956865,94119.0,94118.0,0.056139]
[1736368771311,0.21956865,94119.0,94118.0,0.0733394]
[1736368771502,0.21956865,94119.0,94118.0,0.0723394]
[1736368772595,0.21956865,94119.0,94118.0,0.0703394]
[1736368772904,0.21956865,94119.0,94118.0,0.0733394]
[1736368774011,0.21956865,94119.0,94118.0,0.0723394]
[1736368774214,0.21956865,94119.0,94118.0,0.0733394]
[1736368774508,0.21956865,94119.0,94118.0,0.0723394]
[1736368774894,0.21956865,94119.0,94118.0,0.0703394]
[1736368775101,0.21956865,94119.0,94118.0,0.0733394]
[1736368775408,0.21956865,94119.0,94118.0,0.057139]
[1736368775595,0.21956865,94119.0,94116.0,0.0006]
[1736368775801,0.58036865,94119.0,94118.0,0.001]
[1736368776097,0.58036865,94119.0,94088.0,0.053156]
[1736368776098,0.05315,94099.0,94098.0,0.05315]
[1736368776492,0.053147,94104.0,94103.0,0.053147]
[1736368776902,0.3608,94107.0,94075.0,0.3608]
[1736368777097,0.053163,94076.0,94075.0,0.34103432]
[1736368777299,0.053163,94076.0,94075.0,0.053163]
[1736368778915,0.053163,94076.0,94075.0,0.413963]
[1736368779211,0.053163,94076.0,94075.0,0.414963]
[1736368779708,0.053163,94076.0,94075.0,0.416963]
[1736368779902,0.13009688,94076.0,94075.0,0.416963]
[1736368780302,0.13009688,94076.0,94075.0,0.417963]
[1736368780811,0.13009688,94076.0,94075.0,0.416963]
[1736368781013,0.13009688,94076.0,94075.0,0.417963]
[1736368782110,0.13009688,94076.0,94075.0,0.414963]
[1736368782313,0.13009688,94076.0,94075.0,0.415963]
[1736368782699,0.13009688,94076.0,94075.0,0.413963]
[1736368782904,0.13009688,94076.0,94075.0,0.414963]
[1736368783404,0.13009688,94076.0,94075.0,0.415963]
[1736368784005,0.35152365,94076.0,94075.0,0.415963]
[1736368784610,0.71232365,94076.0,94062.0,0.0006]
[1736368784816,0.053173,94058.0,94038.0,0.3608]
[1736368785111,0.053175,94055.0,94054.0,0.053175]
[1736368785303,0.46940025,94070.0,94052.0,0.3608]
[1736368785506,0.29836065,94076.0,94062.0,0.3608]
[1736368785713,0.29836065,94076.0,94069.0,0.053167]
[1736368785714,0.053166,94070.0,94069.0,0.053167]
[1736368787003,0.053166,94070.0,94069.0,0.005]
[1736368787608,0.053166,94070.0,94069.0,0.006]
[1736368787609,0.129945,94070.0,94069.0,0.006]
[1736368787815,0.490745,94070.0,94069.0,0.006]
[1736368788010,0.129945,94070.0,94069.0,0.006]
[1736368788216,0.129945,94070.0,94069.0,0.005]
[1736368788521,0.129945,94070.0,94069.0,0.001]
[1736368788824,0.129945,94070.0,94069.0,0.005]
[1736368789213,0.2210835,94070.0,94069.0,0.001]
[1736368789806,0.5818835,94070.0,94069.0,0.001]
[1736368790017,0.053174,94057.0,94056.0,0.053174]
[1736368791422,0.129953,94057.0,94056.0,0.053174]
[1736368792216,0.129953,94057.0,94056.0,0.055174]
[1736368792416,0.129953,94057.0,94056.0,1.555174]
[1736368792617,0.053174,94057.0,94056.0,1.555174]
[1736368792922,0.053174,94057.0,94056.0,1.556174]
[1736368793311,0.1576527,94061.0,94060.0,0.053172]
[1736368793516,0.16561306,94067.0,94060.0,0.053172]
[1736368793716,0.16561306,94068.0,94066.0,0.3608]
[1736368793922,0.16561306,94068.0,94067.0,0.149968]
[1736368794117,0.16561306,94068.0,94067.0,1.649968]
[1736368795023,0.05316,94083.0,94082.0,0.053159]
[1736368795232,0.05316,94083.0,94082.0,0.413959]
[1736368796527,0.05316,94083.0,94082.0,0.415959]
[1736368796920,0.05316,94083.0,94082.0,0.413959]
[1736368797125,0.05316,94083.0,94082.0,0.415959]
[1736368797531,0.053155,94089.0,94088.0,0.053154]
[1736368798838,0.053155,94089.0,94082.0,0.37910743]
[1736368798839,0.1014,94098.0,94082.0,0.37810743]
[1736368799036,0.22075207,94104.0,94092.0,0.3608]
[1736368799335,0.22075207,94104.0,94103.0,0.053147]
[1736368800040,0.07259937,94110.0,94109.0,0.053144]
[1736368800341,0.07259937,94110.0,94109.0,0.413944]
[1736368801039,0.12574237,94110.0,94109.0,0.3608]
[1736368801349,0.05315,94100.0,94099.0,0.053149]
[1736368801560,0.05315,94100.0,94099.0,0.413949]
[1736368802346,0.05415,94100.0,94099.0,0.421949]
[1736368802742,0.12684843,94100.0,94099.0,0.421949]
[1736368803043,0.12584843,94100.0,94099.0,0.416949]
[1736368803759,0.12584843,94100.0,94099.0,0.414949]
[1736368804563,0.07269843,94100.0,94099.0,0.414949]
[1736368804745,0.07269843,94100.0,94099.0,0.415949]
[1736368805254,0.07269843,94100.0,94099.0,0.417949]
[1736368805555,0.07269843,94100.0,94099.0,0.416949]
[1736368805949,0.12584743,94100.0,94099.0,0.3618]
[1736368806259,0.12584743,94100.0,94099.0,0.001]
[1736368806552,0.053156,94087.0,94086.0,0.3608]
[1736368806760,0.053159,94083.0,94082.0,0.00159423]
[1736368808055,0.3466095,94083.0,94082.0,0.00159423]
[1736368808858,0.3466095,94083.0,94082.0,0.05475323]
[1736368809052,0.2954505,94083.0,94082.0,0.05475323]
[1736368809253,0.07469843,94083.0,94082.0,0.05475323]
[1736368809854,0.07269843,94083.0,94082.0,0.05475323]
[1736368810956,0.07269843,94083.0,94082.0,0.05675323]
[1736368811460,0.12585743,94083.0,94082.0,0.05675323]
[1736368811657,0.12585743,94083.0,94082.0,0.06175323]
[1736368811658,0.054159,94083.0,94082.0,0.06175323]
[1736368811859,0.054159,94083.0,94082.0,0.00859423]
[1736368812057,0.054159,94083.0,94082.0,0.00959423]
[1736368812459,0.053159,94083.0,94082.0,0.008]
[1736368812658,0.52521732,94083.0,94082.0,0.008]
[1736368812857,0.053176,94053.0,94052.0,0.413976]
[1736368813463,0.053176,94053.0,94052.0,0.4283589]
[1736368813857,0.0987,94061.0,94060.0,0.053171]
[1736368814058,0.05317,94062.0,94061.0,0.053171]
[1736368814758,0.053167,94068.0,94061.0,0.053171]
[1736368814966,0.053167,94068.0,94060.0,0.3608]
[1736368814967,0.053169,94065.0,94064.0,0.053169]
[1736368817754,0.0987,94074.0,94061.0,0.002]
[1736368817958,0.0987,94074.0,94068.0,0.3608]
[1736368818277,0.27391507,94075.0,94074.0,0.053163]
[1736368818451,0.053163,94075.0,94074.0,0.053163]
[1736368819564,0.22075207,94076.0,94075.0,0.053163]
[1736368819753,0.053157,94085.0,94084.0,0.053158]
[1736368821064,0.053157,94085.0,94084.0,0.055158]
[1736368822060,0.1262327,94085.0,94084.0,0.055158]
[1736368822457,0.0730757,94085.0,94084.0,0.055158]
[1736368823160,0.0730757,94085.0,94084.0,0.056158]
[1736368823755,0.31613515,94093.0,94084.0,0.002]
[1736368823968,0.05315,94099.0,94098.0,0.05315]
[1736368825153,0.12625788,94099.0,94098.0,0.05415]
[1736368826661,0.07310788,94099.0,94098.0,0.05415]
[1736368828157,0.07310788,94099.0,94098.0,0.0684802]
[1736368828363,0.07310788,94099.0,94098.0,0.0714802]
[1736368828663,0.053145,94108.0,94107.0,0.053144]
[1736368828870,0.053145,94108.0,94107.0,0.413944]
[1736368829663,0.12616529,94108.0,94107.0,0.413944]
[1736368830670,0.07302029,94108.0,94107.0,0.413944]
[1736368831471,0.12616429,94108.0,94107.0,0.413944]
[1736368831677,0.12716429,94108.0,94107.0,0.413944]
[1736368832057,0.054144,94108.0,94107.0,0.413944]
[1736368832663,0.055144,94108.0,94107.0,0.413944]
[1736368833263,0.002,94108.0,94107.0,0.413944]
[1736368834662,0.053149,94100.0,94099.0,0.053149]
[1736368834867,0.053146,94105.0,94104.0,0.053145]
[1736368835058,0.19159754,94108.0,94103.0,0.3608]
[1736368835266,0.053146,94104.0,94103.0,0.413947]
[1736368835471,0.053149,94099.0,94092.0,0.3608]
[1736368835773,0.053157,94089.0,94088.0,0.053155]
[1736368836972,0.053157,94089.0,94088.0,0.054155]
[1736368837363,0.053152,94095.0,94094.0,0.05315]
[1736368837773,0.053149,94100.0,94099.0,0.053148]
[1736368839170,0.12815287,94100.0,94099.0,0.053148]
[1736368839368,0.13215287,94100.0,94099.0,0.053148]
[1736368839874,0.12815287,94100.0,94099.0,0.415948]
[1736368841463,0.12615287,94100.0,94099.0,0.415948]
[1736368841662,0.053145,94110.0,94109.0,0.053143]
[1736368842173,0.053145,94110.0,94109.0,0.39194299]
[1736368842673,0.22170806,94111.0,94110.0,0.053143]
[1736368842870,0.22170806,94111.0,94109.0,0.39194299]
[1736368842871,0.053142,94112.0,94109.0,0.3608]
[1736368843076,0.057143,94110.0,94109.0,0.413944]
[1736368843273,0.057143,94110.0,94103.0,0.01417149]
[1736368843468,0.053146,94105.0,94104.0,0.053146]
[1736368843774,0.053149,94100.0,94095.0,0.053151]
[1736368843971,0.053149,94100.0,94093.0,0.01399823]
[1736368844170,0.053149,94100.0,94092.0,0.053153]
[1736368844171,0.053153,94093.0,94092.0,0.053153]
[1736368844671,0.2973,94104.0,94092.0,0.053153]
[1736368844870,0.053149,94103.0,94102.0,0.053148]
[1736368845073,0.053145,94108.0,94107.0,0.053144]
[1736368845272,0.053145,94108.0,94107.0,0.413944]
[1736368846466,0.20910827,94108.0,94107.0,0.413944]
[1736368847965,0.21010827,94108.0,94107.0,0.053144]
[1736368848370,0.15696327,94108.0,94107.0,0.413944]
[1736368848874,0.24714391,94112.0,94107.0,0.413944]
[1736368849068,0.24714391,94112.0,94111.0,0.413942]
[1736368849278,0.04448173,94118.0,94117.0,0.053139]
[1736368849478,0.28505322,94119.0,94118.0,0.053139]
[1736368849671,0.1,94120.0,94118.0,0.1004]
[1736368849871,0.1,94120.0,94119.0,0.053138]
[1736368850089,0.053124,94144.0,94119.0,0.053138]
[1736368850270,0.38504452,94140.0,94139.0,0.053127]
[1736368851488,0.1,94140.0,94139.0,0.053127]
[1736368851778,0.153126,94140.0,94139.0,0.053127]
[1736368852366,0.154126,94140.0,94139.0,0.058127]
[1736368852780,0.154126,94140.0,94139.0,0.059127]
[1736368852972,0.153126,94140.0,94139.0,0.056127]
[1736368853576,0.153126,94140.0,94139.0,0.058127]
[1736368853778,0.1,94140.0,94139.0,0.058127]
[1736368854076,0.1,94140.0,94139.0,0.07259486]
[1736368855282,0.1,94140.0,94139.0,0.07059486]
[1736368855878,0.1,94140.0,94139.0,0.07259486]
[1736368857478,0.0787258,94140.0,94139.0,0.07259486]
[1736368858173,0.053115,94159.0,94158.0,0.053115]
[1736368858477,0.1,94160.0,94159.0,0.053115]
[1736368860181,0.1,94160.0,94159.0,0.057115]
[1736368860876,0.1789,94177.0,94176.0,0.053106]
[1736368861078,0.1789,94177.0,94176.0,0.413906]
[1736368861283,0.232005,94177.0,94176.0,0.413906]
[1736368862479,0.237005,94177.0,94168.0,0.3608]
[1736368862788,0.05311,94169.0,94168.0,0.3608]
[1736368863083,0.05311,94169.0,94168.0,0.41391]
[1736368863584,0.053107,94175.0,94174.0,0.053107]
[1736368863780,0.1839,94177.0,94168.0,0.3608]
[1736368863981,0.1839,94177.0,94169.0,0.05311]
[1736368864189,0.05311,94169.0,94168.0,0.3618]
[1736368864579,0.053115,94160.0,94159.0,0.053115]
[1736368864781,0.053115,94160.0,94159.0,0.06654635]
[1736368864982,0.053106,94176.0,94159.0,0.01343135]
[1736368865184,0.05311,94169.0,94168.0,0.05311]
[1736368865490,0.053108,94174.0,94173.0,0.053107]
[1736368866791,0.056108,94174.0,94173.0,0.053107]
[1736368867090,0.058108,94174.0,94173.0,0.053107]
[1736368867289,0.058108,94174.0,94168.0,0.3746386]
[1736368867290,0.005,94174.0,94168.0,0.3746386]
[1736368867488,0.055107,94174.0,94173.0,0.002]
[1736368868586,0.053107,94174.0,94173.0,0.002]
[1736368869181,0.2217,94176.0,94143.0,1.50056]
[1736368869379,0.053119,94154.0,94153.0,0.06601901]
[1736368869587,0.05312,94151.0,94150.0,0.3608]
[1736368869889,0.05312,94151.0,94150.0,0.41392]
[1736368870394,0.05312,94151.0,94150.0,0.3608]
[1736368871081,0.2515,94153.0,94148.0,0.0132375]
[1736368871283,0.053122,94148.0,94147.0,0.053122]
[1736368871890,0.053126,94141.0,94140.0,0.00159309]
[1736368872193,0.3608,94141.0,94112.0,0.36239373]
[1736368872386,0.053135,94124.0,94123.0,0.053136]
[1736368873796,0.053135,94124.0,94123.0,0.056136]
[1736368873988,0.053135,94124.0,94123.0,0.003]
[1736368874194,0.053133,94128.0,94123.0,0.001]
[1736368874395,0.053135,94124.0,94123.0,0.001]
[1736368874899,0.053135,94124.0,94123.0,0.054136]
[1736368876296,0.054135,94124.0,94123.0,0.054136]
[1736368876799,0.054135,94124.0,94123.0,0.053136]
[1736368877195,0.001,94124.0,94123.0,0.053136]
[1736368878296,0.05313,94133.0,94123.0,0.055136]
[1736368878490,0.083,94136.0,94132.0,0.053131]
[1736368878700,0.083,94136.0,94135.0,0.053129]
[1736368879004,0.083,94136.0,94123.0,0.059136]
[1736368879005,0.05408601,94141.0,94140.0,0.053126]
[1736368879195,0.053126,94141.0,94140.0,0.053126]
[1736368881505,0.055126,94141.0,94140.0,0.053126]
[1736368882004,0.053126,94141.0,94140.0,0.054126]
[1736368882905,0.054126,94141.0,94140.0,0.054126]
[1736368883507,0.053126,94141.0,94140.0,0.054126]
[1736368883707,0.053126,94141.0,94140.0,0.053126]
[1736368884700,0.053126,94141.0,94140.0,0.003]
[1736368885104,0.053126,94141.0,94115.0,0.3608]
[1736368885405,0.053137,94120.0,94119.0,0.413937]
[1736368885605,0.053137,94120.0,94119.0,0.42697987]
[1736368887208,0.053137,94120.0,94119.0,0.3618]
[1736368887398,0.053137,94120.0,94119.0,0.414938]
[1736368887611,0.053137,94120.0,94119.0,0.413938]
[1736368887812,0.053135,94125.0,94124.0,0.053134]
[1736368889110,0.1607,94127.0,94126.0,0.053134]
[1736368889111,0.0807,94127.0,94126.0,0.053134]
[1736368890808,0.053133,94128.0,94127.0,0.053133]
[1736368891207,0.0771,94136.0,94122.0,0.053136]
[1736368891402,0.3608,94137.0,94136.0,0.053128]
[1736368891403,0.001,94137.0,94136.0,0.053128]
[1736368891607,0.053122,94147.0,94146.0,0.053122]
[1736368892617,0.36184001,94148.0,94136.0,0.413928]
[1736368892808,0.3608,94148.0,94147.0,0.053122]
[1736368893910,0.130213,94163.0,94162.0,0.053114]
[1736368894104,0.0771,94163.0,94148.0,0.053121]
[1736368894310,0.053111,94168.0,94166.0,0.053111]
[1736368894506,0.053111,94168.0,94167.0,0.053111]
[1736368895716,0.25302388,94176.0,94166.0,0.001]
[1736368895917,0.081,94177.0,94175.0,0.3608]
[1736368896221,0.1,94180.0,94175.0,0.3608]
[1736368896625,0.1,94180.0,94179.0,0.053104]
[1736368898215,0.101,94180.0,94179.0,0.054104]
[1736368898616,0.154104,94180.0,94179.0,0.001]
[1736368898909,0.154104,94180.0,94179.0,0.002]
[1736368899513,0.154104,94180.0,94179.0,0.001]
[1736368899811,0.154104,94180.0,94179.0,0.057104]
[1736368900014,0.153104,94180.0,94179.0,0.057104]
[1736368900215,0.153104,94180.0,94179.0,0.07018743]
[1736368900523,0.153104,94180.0,94179.0,0.06918743]
[1736368900707,0.153104,94180.0,94179.0,0.07018743]
[1736368900914,0.1,94180.0,94179.0,0.07018743]
[1736368901112,0.1,94180.0,94179.0,0.06918743]
[1736368901316,0.1,94180.0,94179.0,0.07018743]
[1736368901519,0.1,94180.0,94179.0,0.06718743]
[1736368902424,0.1,94180.0,94179.0,0.06818743]
[1736368903814,0.101,94180.0,94179.0,0.06818743]
[1736368904622,0.1,94180.0,94179.0,0.06818743]
[1736368905715,0.1,94180.0,94179.0,0.06918743]
[1736368906512,0.101,94180.0,94179.0,0.06918743]
[1736368907027,0.1,94180.0,94179.0,0.06818743]
[1736368907227,0.00096001,94207.0,94179.0,0.31608343]
[1736368907418,0.053084,94216.0,94215.0,0.053083]
[1736368907621,0.43556,94219.0,94211.0,0.3608]
[1736368907920,0.4348,94219.0,94218.0,0.053082]
[1736368908826,0.053083,94218.0,94213.0,0.053085]
[1736368909127,0.053083,94218.0,94214.0,0.053084]
[1736368909426,0.053083,94217.0,94216.0,0.053083]
[1736368910327,0.413883,94217.0,94216.0,0.053083]
[1736368910521,0.053084,94216.0,94187.0,0.3608]
[1736368910728,0.053084,94216.0,94198.0,0.053093]
[1736368910729,0.3608,94199.0,94198.0,0.053093]
[1736368911028,0.3608,94208.0,94198.0,0.053093]
[1736368911236,0.053092,94201.0,94200.0,0.053092]
[1736368911427,0.131789,94207.0,94206.0,0.053089]
[1736368913918,0.053092,94202.0,94201.0,0.053091]
[1736368915235,0.054092,94202.0,94201.0,0.056091]
[1736368916626,0.053092,94202.0,94201.0,0.054091]
[1736368916831,0.054092,94202.0,94201.0,0.056091]
[1736368917135,0.054092,94202.0,94201.0,0.003]
[1736368919123,0.054092,94202.0,94201.0,0.056092]
[1736368919324,0.001,94202.0,94201.0,0.056092]
[1736368921829,0.414891,94202.0,94201.0,0.056092]
[1736368922023,0.414891,94202.0,94201.0,0.003]
[1736368922229,0.053093,94200.0,94184.0,0.053101]
[1736368922429,0.053101,94185.0,94184.0,0.06611726]
[1736368922633,0.053099,94188.0,94187.0,0.053099]
[1736368922840,0.053099,94188.0,94177.0,0.3608]
[1736368922841,0.053097,94191.0,94190.0,0.053098]
[1736368923340,0.0745,94193.0,94192.0,0.053097]
[1736368923750,0.127596,94193.0,94192.0,0.053097]
[1736368924531,0.128596,94193.0,94192.0,0.053097]
[1736368924827,0.128596,94193.0,94192.0,0.056097]
[1736368928144,0.001,94193.0,94192.0,0.056097]
[1736368933254,0.001,94193.0,94192.0,0.135597]
[1736368933748,0.001,94193.0,94192.0,1.635597]
[1736368933936,1e-06,94193.0,94192.0,2.296397]
[1736368934245,0.0772,94217.0,94216.0,0.053083]
[1736368934841,0.0772,94217.0,94216.0,0.413883]
[1736368935651,0.0792,94217.0,94216.0,0.413883]
[1736368936152,0.004,94217.0,94216.0,0.413883]
[1736368937151,0.002,94217.0,94216.0,0.415883]
[1736368937548,0.25302388,94228.0,94216.0,0.3628]
[1736368937747,0.25302388,94228.0,94219.0,0.053082]
[1736368938252,0.076,94229.0,94219.0,0.053082]
[1736368938945,0.101,94220.0,94219.0,0.055082]
[1736368939451,0.25302388,94247.0,94219.0,0.002]
[1736368939654,0.05307,94239.0,94238.0,0.05307]
[1736368939952,0.25302388,94247.0,94231.0,0.3608]
[1736368940142,0.0743,94243.0,94239.0,0.05307]
[1736368941247,0.101,94240.0,94239.0,0.05307]
[1736368941849,0.1,94240.0,94239.0,0.05407]
[1736368942458,0.1,94240.0,94239.0,0.066481]
[1736368943042,0.1,94240.0,94239.0,0.067481]
[1736368943445,0.05899945,94240.0,94239.0,0.429281]
[1736368944342,0.05899945,94240.0,94239.0,0.068481]
[1736368944748,0.05899945,94240.0,94239.0,0.069481]
[1736368946256,0.05899945,94240.0,94239.0,0.068481]
[1736368946453,0.05899945,94240.0,94239.0,0.069481]
[1736368948953,0.11206945,94240.0,94239.0,0.069481]
[1736368949151,0.11206945,94240.0,94239.0,0.05307]
[1736368949552,0.05899945,94240.0,94239.0,0.05307]
[1736368949747,0.05899945,94240.0,94239.0,0.41387]
[1736368949944,0.07268983,94249.0,94239.0,0.3608]
[1736368950155,0.1,94260.0,94248.0,0.413865]
[1736368950458,0.1,94260.0,94259.0,0.413859]
[1736368951249,0.0596295,94260.0,94259.0,0.413859]
[1736368951457,0.0596295,94260.0,94259.0,0.50357083]
[1736368952554,0.0596295,94260.0,94259.0,2.00357083]
[1736368952859,0.0747,94285.0,94279.0,0.053048]
[1736368953056,0.0748,94287.0,94279.0,0.413848]
[1736368954055,0.0727,94289.0,94279.0,0.053048]
[1736368954255,0.4648,94280.0,94260.0,0.00159121]
[1736368954554,0.57410152,94280.0,94265.0,0.053055]
[1736368954759,0.053055,94266.0,94265.0,0.053055]
[1736368955457,0.57410152,94280.0,94260.0,0.01356612]
[1736368955653,0.3608,94261.0,94248.0,0.47576]
[1736368955861,0.053062,94254.0,94251.0,0.053063]
[1736368956047,0.053062,94254.0,94252.0,0.053063]
[1736368956458,0.053062,94254.0,94253.0,0.053062]
[1736368957162,0.0736,94260.0,94248.0,0.48991807]
[1736368957163,0.053059,94259.0,94248.0,0.48991807]
[1736368957361,0.0736,94260.0,94249.0,0.10830152]
[1736368957667,0.0736,94260.0,94259.0,0.053059]
[1736368958161,0.053057,94264.0,94261.0,0.053057]
[1736368958464,0.1421,94265.0,94264.0,0.053056]
[1736368959652,0.1221,94265.0,94264.0,0.053056]
[1736368959867,0.071,94265.0,94264.0,0.055056]
[1736368960269,0.071,94265.0,94264.0,0.415856]
[1736368960564,0.071,94265.0,94264.0,0.413856]